[Event "Polish Ekstraliga 2024"]
[Site "Walbrzych"]
[Date "2024.10.09"]
[Round "3.10"]
[White "Warakomski, Tomasz"]
[Black "Mastrovasilis, Dimitrios"]
[Result "0-1"]
[ECO "C55"]
[WhiteElo "2545"]
[BlackElo "2532"]
[Annotator "RC"]
[PlyCount "198"]
[EventDate "2024.10.05"]
[EventType "team-tourn"]
[EventCountry "POL"]
[SourceTitle "playchess.com"]
[Source "ChessBase"]
[SourceQuality "1"]
[WhiteTeam "Gliwice"]
[BlackTeam "Polonia Wroclaw"]
[TimeControl "40/5400+30:1800+30"]

1. e4 {[%emt 0:00:02]} e5 {[%emt 0:00:17]} 2. Bc4 {[%emt 0:00:16]} Nf6 {[%emt 0:00:23]} 3. d3 {[%emt 0:00:05]} Nc6 {[%emt 0:01:32]} 4. Nf3 {[%emt 0:00:05]} h6 {[%emt 0:00:25]} 5. O-O {[%emt 0:01:05]} d6 {[%emt 0:00:13]} 6. c3 {[%emt 0:01:53]} Be7 {[%emt 0:00:44]} 7. Re1 {[%emt 0:00:51]} O-O {[%emt 0:00:24]} 8. b4 {[%emt 0:06:06]} a6 {[%emt 0:05:24]} 9. a4 {[%emt 0:01:04]} Be6 {[%emt 0:02:01]} 10. Bxe6 {[%emt 0:00:24]} fxe6 {[%emt 0:00:04]} 11. Ra2 {[%emt 0:05:10]} Qd7 {[%emt 0:14:33]} 12. Rd2 {[%emt 0:10:28]} Qe8 {[%emt 0:05:14]} 13. b5 {[%emt 0:08:38]} axb5 {[%emt 0:09:33]} 14. axb5 {[%emt 0:00:06]} Nd8 {[%emt 0:00:24]} 15. Rb2 {[%emt 0:00:57]} Qg6 {[%emt 0:07:02]} 16. d4 {[%emt 0:02:38]} exd4 {[%emt 0:11:38]} 17. Nxd4 {[%emt 0:01:21]} Nd7 {[%emt 0:01:46]} 18. f4 {[%emt 0:01:35]} Nc5 {[%emt 0:03:48]} 19. Rbe2 {[%emt 0:03:49]} Bf6 {[%emt 0:04:17]} 20. Ba3 {[%emt 0:06:10]} b6 {[%emt 0:00:16]} 21. Rf1 {[%emt 0:06:32]} Qh5 {[%emt 0:02:30]} 22. Rf3 {[%emt 0:06:02]} Ndb7 {[%emt 0:03:34]} 23. Nc6 {[%emt 0:08:34]} Rf7 {[%emt 0:05:55]} 24. h3 {[%emt 0:01:03]} Qg6 {[%emt 0:03:40]} 25. f5 {[%emt 0:05:03]} Qh5 {[%emt 0:02:16]} 26. fxe6 {[%emt 0:08:34]} Nxe6 {[%emt 0:00:17]} 27. Rf5 {[%emt 0:00:32]} Ng5 {[%emt 0:04:02]} 28. Qd3 {[%emt 0:01:51]} Re8 {[%emt 0:02:11]} 29. Nd2 {[%emt 0:01:04]} Nd8 {[%emt 0:01:28]} 30. Nxd8 {[%emt 0:04:26]} Bxd8 {[%emt 0:00:10]} 31. Ref2 {[%emt 0:02:02]} Bf6 {[%emt 0:02:59]} 32. Nf1 {[%emt 0:01:56]} Qg6 {[%emt 0:01:06]} 33. Ng3 {[%emt 0:00:37]} Be5 {[%emt 0:02:13]} 34. Rxf7 {[%emt 0:00:27]} Nxf7 {[%emt 0:00:03]} 35. Nf5 {[%emt 0:00:08]} Qe6 {[%emt 0:00:54]} 36. Bc1 {[%emt 0:01:47]} Bf6 {[%emt 0:01:33]} 37. Re2 {[%emt 0:00:50]} Qe5 {[%emt 0:01:00]} 38. c4 {[%emt 0:00:58]} Qa1 {[%emt 0:02:05]} 39. Re1 {[%emt 0:01:22]} Qc3 {[%emt 0:00:32]} 40. Qe2 {[%emt 0:00:00]} Kh7 {[%emt 0:00:00]} 41. Rf1 {[%emt 0:14:03]} Qe5 {[%emt 0:05:45]} 42. Re1 {[%emt 0:00:14]} Qc3 {[%emt 0:05:45]} 43. Kh1 {[%emt 0:07:53]} Ng5 {[%emt 0:08:15]} 44. Bxg5 {[%emt 0:00:49]} Bxg5 {[%emt 0:00:03]} 45. h4 {[%emt 0:02:14]} Bf6 {[%emt 0:03:44]} 46. h5 {[%emt 0:00:04]} Kh8 {[%emt 0:00:41]} 47. Kh2 {[%emt 0:02:17]} Kh7 {[%emt 0:03:09]} 48. g3 {[%emt 0:00:07]} Kh8 {[%emt 0:00:07]} 49. Kh3 {[%emt 0:00:03]} Bg5 {[%emt 0:00:22]} 50. Kg4 {[%emt 0:03:44]} Bf6 {[%emt 0:00:14]} 51. Rd1 {[%emt 0:00:21]} Qe5 {[%emt 0:00:36]} 52. Kf3 {[%emt 0:00:39]} Qc3+ {[%emt 0:00:45]} 53. Qd3 {[%emt 0:00:31]} Qb2 {[%emt 0:00:18]} 54. Qd5 {[%emt 0:02:11]} Qb3+ {[%emt 0:00:36]} 55. Rd3 {[%emt 0:00:47]} Qb1 {[%emt 0:00:59]} 56. Kg4 {[%emt 0:01:04]} Re5 {[%emt 0:01:10]} 57. Qa8+ {[%emt 0:01:43]} Kh7 {[%emt 0:00:03]} 58. Re3 {[%emt 0:00:09]} Qd1+ {[%emt 0:00:20]} 59. Rf3 {[%emt 0:00:34]} Qe2 {[%emt 0:01:07]} 60. Qa3 {[%emt 0:00:47]} Rxe4+ {[%emt 0:03:46]} 61. Kh3 {[%emt 0:00:04]} Qd1 {[%emt 0:00:29]} 62. Kg2 {[%emt 0:00:25]} Re2+ {[%emt 0:00:59]} 63. Kh3 {[%emt 0:00:03]} Re4 {[%emt 0:00:39]} 64. Kg2 {[%emt 0:00:04]} Rxc4 {[%emt 0:02:09]} 65. Ne3 {[%emt 0:00:41]} Qd2+ {[%emt 0:00:47]} 66. Rf2 {[%emt 0:01:24]} Rc3 {[%emt 0:00:02]} 67. Rxd2 {[%emt 0:00:37]} Rxa3 {[%emt 0:00:02]} 68. Nd5 {[%emt 0:01:26]} Be5 {[%emt 0:00:14]} 69. Nxc7 {[%emt 0:01:18]} Rxg3+ {[%emt 0:00:05]} 70. Kf1 {[%emt 0:00:35]} Rb3 {[%emt 0:01:32]} 71. Rd5 {[%emt 0:01:00]} g6 {[%emt 0:01:14]} 72. Na8 {[%emt 0:01:00]} gxh5 {[%emt 0:00:17]} 73. Nxb6 {[%emt 0:00:05]} h4 {[%emt 0:00:15]} 74. Nc4 {[%emt 0:00:43]} h3 {[%emt 0:00:20]} 75. Rd1 {[%emt 0:01:00]} Rxb5 {[%emt 0:00:45]} 76. Kg1 {[%emt 0:00:18]} Rb8 {[%emt 0:01:27]} 77. Kh1 {[%emt 0:00:04]} Bf4 {[%emt 0:00:27]} 78. Rf1 {[%emt 0:00:14]} Bg3 {[%emt 0:00:20]} 79. Rg1 {[%emt 0:00:22]} d5 {[%emt 0:00:26]} 80. Na5 {[%emt 0:00:51]} Bf4 {[%emt 0:00:50]} 81. Nc6 {[%emt 0:00:20]} Rb6 {[%emt 0:00:27]} 82. Ne7 {[%emt 0:00:15]} Rd6 {[%emt 0:00:35]} 83. Rf1 {[%emt 0:00:05]} Bg5 {[%emt 0:00:33]} 84. Rf7+ {[%emt 0:01:31]} Kh8 {[%emt 0:00:02]} 85. Rf8+ {[%emt 0:01:00]} Kg7 {[%emt 0:00:10]} 86. Nf5+ {[%emt 0:00:05]} Kxf8 {[%emt 0:00:04]} 87. Nxd6 {[%emt 0:00:04]} d4 {[%emt 0:01:45]} 88. Ne4 {[%emt 0:00:12]} Bf4 {[%emt 0:00:33]} 89. Nf2 {[%emt 0:00:08]} Kf7 {[%emt 0:00:37]} 90. Nd3 {[%emt 0:00:39]} Bd6 {[%emt 0:00:14]} 91. Nf2 {[%emt 0:00:47]} Ke6 {[%emt 0:00:39]} 92. Nxh3 {[%emt 0:01:44]} d3 {[%emt 0:00:25]} 93. Nf2 {[%emt 0:00:05]} d2 {[%emt 0:00:13]} 94. Kg2 {[%emt 0:00:02]} Bc5 {[%emt 0:00:18]} 95. Nd1 {[%emt 0:00:05]} h5 {[%emt 0:00:26]} 96. Kf3 {[%emt 0:00:06]} Ke5 {[%emt 0:01:09]} 97. Nb2 {[%emt 0:00:23]} Kd4 {[%emt 0:00:38]} 98. Ke2 {[%emt 0:00:06]} Kc3 {[%emt 0:00:28]} 99. Nd3 {[%emt 0:00:28]} d1=Q+ {[%emt 0:00:13]} 0-1

[Event "Polish Ekstraliga 2024"]
[Site "Walbrzych"]
[Date "2024.10.09"]
[Round "3.11"]
[White "Gumularz, Szymon"]
[Black "Kantans, Toms"]
[Result "1/2-1/2"]
[ECO "A35"]
[WhiteElo "2559"]
[BlackElo "2493"]
[Annotator "TA"]
[PlyCount "103"]
[EventDate "2024.10.05"]
[EventType "team-tourn"]
[EventCountry "POL"]
[SourceTitle "playchess.com"]
[Source "ChessBase"]
[SourceQuality "1"]
[WhiteTeam "Polonia Wroclaw"]
[BlackTeam "Gliwice"]
[TimeControl "40/5400+30:1800+30"]

{[%evp 18,103,30,23,41,21,31,27,33,29,34,20,26,20,31,36,48,47,50,51,50,56,39,54,49,50,52,50,52,47,59,66,64,60,115,52,109,49,49,38,39,44,45,45,50,50,36,42,50,49,50,49,77,81,68,0,0,0,18,0,0,0,0,0,0,0,0,0,0,0,0,0,0,0,0,0,0,0,0,0,0,0,0,0,0,0,0,0]} 1. c4 {[%emt 0:00:08]} c5 {[%emt 0:00:23]} 2. Nf3 {[%emt 0:00:07]} Nc6 {[%emt 0:00:27]} 3. Nc3 {[%emt 0:00:07][%cal Bb1c3,Bc3d1,Bd1e3][%mdl 32]} Nf6 {[%emt 0:01:29]} 4. g3 {[%emt 0:00:08]} d5 {[%emt 0:00:53]} 5. d4 {[%emt 0:00:06]} cxd4 {[%emt 0:03:59]} 6. Nxd4 {[%emt 0:00:15]} dxc4 {[%emt 0:00:23]} 7. Nxc6 {[%emt 0:00:49]} Qxd1+ {[%emt 0:00:07]} 8. Nxd1 {[%emt 0:00:09]} bxc6 {[%emt 0:00:06]} 9. Bg2 {[%emt 0:00:25]} Nd5 {[%emt 0:00:22]} 10. Ne3 {[%emt 0:02:02]} e6 {[%emt 0:00:26]} 11. Nxc4 {[%emt 0:00:10]} Ba6 {[%emt 0:00:59]} 12. b3 {[%emt 0:01:43]} Be7 {[%emt 0:04:41] White has an edge.} 13. Bd2 {[%emt 0:03:32]} O-O {[%emt 0:04:28]} 14. Rc1 {[%emt 0:00:07]} Rac8 {[%emt 0:00:24]} 15. O-O {[%emt 0:00:55]} c5 {[%emt 0:00:24]} 16. Rfd1 {[%emt 0:09:45][%cal Bf1d1,Bd1d7,Bd7b7][%mdl 32]} Nb4 {[%emt 0:09:18]} 17. Bxb4 {[%emt 0:14:25]} cxb4 {[%emt 0:01:50]} 18. Rd7 $1 {[%emt 0:00:04][%csl LRa7,LRe7]} Bc5 {[%emt 0:23:34]} 19. Bb7 {[%emt 0:00:21]} Bxb7 {[%emt 0:00:06]} 20. Rxb7 {[%emt 0:00:02]} Rfd8 {[%emt 0:00:18]} 21. Kf1 {[%emt 0:01:53]} Bb6 {[%emt 0:00:17]} 22. Ke1 {[%emt 0:07:40]} h5 {[%emt 0:09:01]} 23. e3 {[%emt 0:01:42]} f6 {[%emt 0:04:20]} 24. Rd1 {[%emt 0:01:15]} Rxd1+ {[%emt 0:00:22]} 25. Kxd1 $14 {[%emt 0:00:05][%cal Oc4b2][%mdl 4096] Endgame. KRB-KRN} Bc5 {[%emt 0:00:04] [#]} (25... Rc6 $14) 26. h3 {[%emt 0:08:01] White is more active.} (26. Nb2 $1 $16) 26... Kh7 {[%emt 0:04:14]} ({Better is} 26... Rc6 $14) 27. Ke2 {[%emt 0:00:19]} (27. Nb2 $16) 27... Rc6 {[%emt 0:01:22]} 28. Rb5 {[%emt 0:00:11]} g5 {[%emt 0:01:10]} 29. g4 {[%emt 0:00:24]} hxg4 {[%emt 0:02:03]} 30. hxg4 {[%emt 0:00:06]} Rc7 {[%emt 0:00:57]} 31. f4 {[%emt 0:04:27]} gxf4 {[%emt 0:00:16]} 32. exf4 {[%emt 0:00:04]} Kg6 {[%emt 0:00:39]} 33. Kf3 {[%emt 0:00:32]} Be7 {[%emt 0:06:31]} 34. Ra5 {[%emt 0:04:47]} Bc5 {[%emt 0:02:38]} 35. Ra6 {[%emt 0:00:25]} Kf7 {[%emt 0:00:14]} 36. f5 {[%emt 0:10:51]} ({White should try} 36. g5 $14) 36... exf5 $11 {[%emt 0:01:03] The position is equal.} 37. gxf5 {[%emt 0:01:18]} Kg7 {[%emt 0:01:56]} 38. Re6 {[%emt 0:06:23]} Rd7 {[%emt 0:00:20]} 39. Rc6 {[%emt 0:08:03]} Rd5 {[%emt 0:09:12]} 40. Kg4 {[%emt 0:00:00]} Kf7 {[%emt 0:00:00]} 41. Rc7+ {[%emt 0:02:15]} Ke8 {[%emt 0:02:40]} 42. Rb7 {[%emt 0:02:06]} Kd8 {[%emt 0:07:40]} 43. Rh7 {[%emt 0:04:28]} Rd1 {[%emt 0:03:41]} 44. Rh2 {[%emt 0:04:23]} Rg1+ {[%emt 0:03:40]} 45. Kf3 {[%emt 0:00:18]} Kc7 {[%emt 0:00:28]} 46. Rh6 {[%emt 0:03:43]} Rf1+ {[%emt 0:06:20]} 47. Ke4 {[%emt 0:01:46]} Re1+ {[%emt 0:00:04]} 48. Kd3 {[%emt 0:03:03]} Be7 {[%emt 0:05:29]} 49. Ne3 {[%emt 0:06:59]} Kc6 {[%emt 0:00:36] Against Nd5} 50. Ng4 {[%emt 0:13:21]} Rd1+ {[%emt 0:00:25]} 51. Kc2 {[%emt 0:01:54]} Ra1 {[%emt 0:00:43]} 52. Nxf6 {[%emt 0:03:13] Weighted Error Value: White=0.07 (flawless) /Black=0.06 (flawless) .  Mistake:       	White=3     	Black=2      Inaccurate:     	---       	Black=1      OK:         	White=12    	Black=23     Best:        	White=4     	Black=1} 1/2-1/2

[Event "Polish Ekstraliga 2024"]
[Site "Walbrzych"]
[Date "2024.10.09"]
[Round "3.12"]
[White "Antolak, Julia"]
[Black "Zawadzka, Jolanta"]
[Result "1/2-1/2"]
[ECO "C56"]
[WhiteElo "2281"]
[BlackElo "2349"]
[Annotator "RC"]
[PlyCount "43"]
[EventDate "2024.10.05"]
[EventType "team-tourn"]
[EventCountry "POL"]
[SourceTitle "playchess.com"]
[Source "ChessBase"]
[SourceQuality "1"]
[WhiteTeam "Gliwice"]
[BlackTeam "Polonia Wroclaw"]
[TimeControl "40/5400+30:1800+30"]

1. e4 {[%emt 0:00:03]} e5 {[%emt 0:00:09]} 2. Nf3 {[%emt 0:00:05]} Nc6 {[%emt 0:00:05]} 3. Bc4 {[%emt 0:00:05]} Nf6 {[%emt 0:00:16]} 4. d4 {[%emt 0:00:49]} exd4 {[%emt 0:00:34]} 5. O-O {[%emt 0:00:17]} Nxe4 {[%emt 0:03:11]} 6. Re1 {[%emt 0:01:32]} d5 {[%emt 0:00:27]} 7. Bxd5 {[%emt 0:01:19]} Qxd5 {[%emt 0:00:13]} 8. Nc3 {[%emt 0:00:08]} Qh5 {[%emt 0:03:43]} 9. Nxe4 {[%emt 0:02:02]} Be6 {[%emt 0:01:00]} 10. Bg5 {[%emt 0:01:36]} Bd6 {[%emt 0:19:46]} 11. Nxd6+ {[%emt 0:09:25]} cxd6 {[%emt 0:00:06]} 12. Bf4 {[%emt 0:01:09]} Qc5 {[%emt 0:16:37]} 13. c3 {[%emt 0:01:24]} O-O {[%emt 0:02:32]} 14. Nxd4 {[%emt 0:13:07]} Nxd4 {[%emt 0:00:18]} 15. Be3 {[%emt 0:01:24]} Rfe8 {[%emt 0:06:32]} 16. Bxd4 {[%emt 0:01:00]} Qf5 {[%emt 0:00:37]} 17. Re3 {[%emt 0:01:23]} a6 {[%emt 0:10:36]} 18. Qd2 {[%emt 0:03:03]} f6 {[%emt 0:02:52]} 19. Rae1 {[%emt 0:01:58]} Bf7 {[%emt 0:01:17]} 20. a3 {[%emt 0:02:15]} Rxe3 {[%emt 0:04:34]} 21. Bxe3 {[%emt 0:00:10]} d5 {[%emt 0:03:10]} 22. h3 {[%emt 0:08:26]} 1/2-1/2

[Event "Polish Ekstraliga 2024"]
[Site "Walbrzych"]
[Date "2024.10.09"]
[Round "3.13"]
[White "Mendonca, Leon Luke"]
[Black "Bluebaum, Matthias"]
[Result "1/2-1/2"]
[ECO "C55"]
[WhiteElo "2622"]
[BlackElo "2646"]
[Annotator "TA"]
[PlyCount "163"]
[EventDate "2024.10.05"]
[EventType "team-tourn"]
[EventCountry "POL"]
[SourceTitle "playchess.com"]
[Source "ChessBase"]
[SourceQuality "1"]
[WhiteTeam "Bydgoszcz"]
[BlackTeam "Raciborz"]
[TimeControl "40/5400+30:1800+30"]

{[%evp 72,163,49,38,37,49,39,41,52,52,51,19,36,32,49,56,56,45,43,0,54,0,36,37,39,17,17,28,20,18,25,26,31,25,27,25,35,45,48,27,26,23,29,27,38,29,29,27,39,24,30,31,33,0,0,0,0,-3,-3,-3,-6,-6,0,0,0,0,0,-1,0,0,0,0,0,-1,0,0,0,0,0,0,0,0,0,0,0,0,0,0,0,0,0,0,0,-5]} 1. e4 {[%emt 0:00:10]} e5 {[%emt 0:00:17]} 2. Nf3 {[%emt 0:00:07]} Nc6 {[%emt 0:00:04]} 3. Bc4 {[%emt 0:01:20]} Nf6 {[%emt 0:00:15]} 4. d3 {[%emt 0:00:14]} Be7 {[%emt 0:00:17]} 5. O-O {[%emt 0:00:55]} O-O {[%emt 0:00:25]} 6. Nc3 {[%emt 0:06:49]} d6 {[%emt 0:00:08]} 7. a3 {[%emt 0:03:38]} a5 {[%emt 0:00:38] C55: Two Knights: 4 d3, 4 d4 exd4 5 e5 and Max Lange Attack.} 8. Re1 {[%emt 0:06:07]} Be6 {[%emt 0:02:13]} 9. Nd5 {[%emt 0:08:55]} h6 {[%emt 0:01:15]} 10. h3 {[%emt 0:03:04]} Re8 {[%emt 0:00:15]} 11. Bd2 $146 {[%emt 0:06:34]} ({Predecessor:} 11. Nxf6+ Bxf6 12. Bxe6 Rxe6 13. c4 Kh7 14. b3 g6 15. Qd2 Bg7 16. Bb2 Qd7 17. b4 {½-½ Vaishali,R (2506)-Muzychuk,A (2525) Tbilisi FIDE GP (Women) 2024 (7)}) 11... Bf8 {[%emt 0:03:10]} 12. b4 {[%emt 0:06:33]} axb4 {[%emt 0:12:24]} 13. axb4 {[%emt 0:00:53]} Bxd5 {[%emt 0:06:32]} 14. exd5 {[%emt 0:07:59]} Ne7 {[%emt 0:00:05]} 15. Bb5 {[%emt 0:00:08]} Rxa1 {[%emt 0:01:05]} 16. Qxa1 {[%emt 0:00:02]} c6 {[%emt 0:00:05]} 17. dxc6 {[%emt 0:00:09]} bxc6 {[%emt 0:00:01]} 18. Bc4 {[%emt 0:05:38]} Ng6 {[%emt 0:06:05]} 19. Bb3 {[%emt 0:05:20]} Qb6 {[%emt 0:06:28]} 20. Qa5 {[%emt 0:03:59]} Qb7 {[%emt 0:03:23]} 21. Ra1 {[%emt 0:00:46]} d5 {[%emt 0:00:05]} 22. Qa6 {[%emt 0:06:04]} Qc7 {[%emt 0:01:48]} 23. b5 {[%emt 0:06:54]} cxb5 {[%emt 0:02:02]} 24. Qxb5 {[%emt 0:00:05]} Rb8 {[%emt 0:08:30]} 25. Qa5 {[%emt 0:00:27]} Qc8 {[%emt 0:02:45]} 26. Qa6 {[%emt 0:03:29]} Qc7 {[%emt 0:01:04]} 27. Qa7 {[%emt 0:06:23]} Rb7 {[%emt 0:00:15]} 28. Qa5 {[%emt 0:00:14]} Bc5 {[%emt 0:06:14]} 29. Qxc7 {[%emt 0:01:20]} Rxc7 {[%emt 0:00:01]} 30. Ra8+ {[%emt 0:01:31]} Kh7 {[%emt 0:00:01]} 31. Ba5 {[%emt 0:02:07]} Rc6 {[%emt 0:01:35]} 32. Ba4 {[%emt 0:04:19]} Re6 {[%emt 0:00:09]} 33. Rc8 {[%emt 0:00:22]} Ba7 {[%emt 0:02:28]} 34. Bb3 {[%emt 0:00:07]} e4 {[%emt 0:04:26]} 35. dxe4 {[%emt 0:01:09]} Ra6 {[%emt 0:00:01]} 36. e5 {[%emt 0:03:06]} Nxe5 {[%emt 0:13:28]} 37. Bc3 {[%emt 0:01:02]} Nxf3+ {[%emt 0:00:20]} 38. gxf3 {[%emt 0:00:01]} Kg6 {[%emt 0:00:22]} 39. Rc7 {[%emt 0:01:02]} Bb6 {[%emt 0:01:51]} 40. Rb7 {[%emt 0:00:00]} Bc5 {[%emt 0:00:00]} 41. Kf1 {[%emt 0:08:07]} Ra7 {[%emt 0:02:33]} 42. Rb5 {[%emt 0:00:15]} Rc7 {[%emt 0:00:49]} 43. Be5 {[%emt 0:00:56]} Rc8 {[%emt 0:08:06]} 44. Rb7 {[%emt 0:04:30]} Rd8 {[%emt 0:04:26]} 45. Rb5 {[%emt 0:05:37]} Rc8 $1 {[%emt 0:00:57]} 46. Rb7 {[%emt 0:04:05]} Rd8 $1 {[%emt 0:00:04]} 47. Bb2 {[%emt 0:00:04]} Rd6 {[%emt 0:05:03]} 48. Kg2 {[%emt 0:02:25]} Rb6 {[%emt 0:02:56]} 49. Rc7 {[%emt 0:02:30]} Bd6 {[%emt 0:00:06]} 50. Ra7 {[%emt 0:00:01]} Bc5 {[%emt 0:01:46]} 51. Ra5 {[%emt 0:01:06]} Bb4 {[%emt 0:00:27]} 52. Ra8 {[%emt 0:01:43]} Bd6 {[%emt 0:02:28]} 53. Bc1 {[%emt 0:01:04]} Rc6 {[%emt 0:02:41]} 54. Ra7 {[%emt 0:00:40]} Bc5 {[%emt 0:04:16]} 55. Rb7 {[%emt 0:00:11]} Rb6 {[%emt 0:00:17]} 56. Rc7 {[%emt 0:00:05]} Bd6 {[%emt 0:00:09]} 57. Ra7 {[%emt 0:00:05]} Bc5 {[%emt 0:00:38]} 58. Ra5 {[%emt 0:00:15]} Bb4 {[%emt 0:00:09]} 59. Ra8 {[%emt 0:00:24]} Rc6 {[%emt 0:01:14]} 60. Rb8 {[%emt 0:00:47]} Bc3 {[%emt 0:00:54]} 61. Rb5 {[%emt 0:00:29]} Kf5 {[%emt 0:01:31]} 62. Bxd5 {[%emt 0:02:48]} Nxd5 {[%emt 0:00:10]} 63. Rxd5+ {[%emt 0:00:01]} Ke6 {[%emt 0:00:15]} 64. Rd3 {[%emt 0:00:35]} Be5 {[%emt 0:01:53]} 65. Rd2 {[%emt 0:00:10]} Kf5 {[%emt 0:00:09]} 66. Re2 {[%emt 0:00:27]} Rg6+ {[%emt 0:00:19]} 67. Kf1 {[%emt 0:02:07]} Bh2 {[%emt 0:01:15]} 68. Re1 {[%emt 0:00:06]} Rc6 {[%emt 0:00:03]} 69. Kg2 {[%emt 0:00:20]} Be5 {[%emt 0:00:06]} 70. Re2 {[%emt 0:00:07]} Rg6+ {[%emt 0:00:03]} 71. Kh1 {[%emt 0:00:11]} Rc6 {[%emt 0:00:04]} 72. Be3 {[%emt 0:00:12]} h5 {[%emt 0:00:43]} 73. Kg2 {[%emt 0:00:34]} Rc4 {[%emt 0:00:32]} 74. Rd2 {[%emt 0:00:33]} f6 {[%emt 0:00:22]} 75. Kf1 {[%emt 0:02:32]} g5 {[%emt 0:00:55]} 76. Kg2 {[%emt 0:01:35]} Ke6 {[%emt 0:00:16]} 77. Re2 {[%emt 0:00:31]} Kf5 {[%emt 0:00:05]} 78. Bb6 {[%emt 0:00:06]} Kg6 {[%emt 0:01:16]} 79. Ba5 {[%emt 0:00:15]} Bc3 {[%emt 0:00:23]} 80. Bb6 {[%emt 0:01:42]} Be5 {[%emt 0:00:04]} 81. Ba5 {[%emt 0:00:50]} Bc3 {[%emt 0:00:02]} 82. Bb6 {[%emt 0:00:10]} 1/2-1/2

[Event "Polish Ekstraliga 2024"]
[Site "Walbrzych"]
[Date "2024.10.09"]
[Round "3.14"]
[White "Donchenko, Alexander"]
[Black "Wojtaszek, Radoslaw"]
[Result "1-0"]
[ECO "A20"]
[WhiteElo "2626"]
[BlackElo "2673"]
[Annotator "TA"]
[PlyCount "77"]
[EventDate "2024.10.05"]
[EventType "team-tourn"]
[EventCountry "POL"]
[SourceTitle "playchess.com"]
[Source "ChessBase"]
[SourceQuality "1"]
[WhiteTeam "Raciborz"]
[BlackTeam "Bydgoszcz"]
[TimeControl "40/5400+30:1800+30"]

{[%evp 9,77,0,6,0,0,9,12,-46,52,60,57,48,51,41,35,34,35,39,33,40,34,40,49,18,48,26,39,38,37,23,10,23,20,21,35,0,0,16,19,11,70,55,43,44,108,98,162,164,180,167,188,164,306,290,282,0,39,0,291,158,330,308,381,304,439,379,397,370,770,600]} 1. c4 {[%emt 0:00:03]} e5 {[%emt 0:00:28]} 2. Nf3 {[%emt 0:00:11]} e4 {[%emt 0:02:44]} 3. Nd4 {[%emt 0:00:18]} Nc6 {[%emt 0:00:33]} 4. e3 {[%emt 0:00:16]} Nf6 {[%emt 0:01:29]} 5. Nc3 {[%emt 0:00:34]} Bb4 {[%emt 0:06:04]} 6. Qb3 {[%emt 0:00:35] And now Nxc6 would win.} Nxd4 {[%emt 0:08:20]} 7. exd4 {[%emt 0:00:15]} Ba5 {[%emt 0:00:30]} 8. Qb5 {[%emt 0:16:03]} ({White should try} 8. Qa3 $11 c6 9. d3) 8... Bxc3 {[%emt 0:04:12]} (8... Bb6 $15) 9. Qe5+ $14 {[%emt 0:01:00]} (9. bxc3 O-O $11) 9... Qe7 {[%emt 0:00:35]} 10. dxc3 {[%emt 0:01:27]} (10. bxc3 d6 11. Qxe7+ Kxe7) (10. Qxe7+ {simplifies} Kxe7 11. dxc3 d6 12. Be3) 10... d6 {[%emt 0:00:10]} 11. Qg5 {[%emt 0:07:27]} O-O {[%emt 0:04:35]} 12. Be2 {[%emt 0:00:21]} Re8 {[%emt 0:02:16]} 13. O-O {[%emt 0:04:36]} h6 {[%emt 0:01:20]} 14. Qg3 {[%emt 0:01:58]} Kh7 {[%emt 0:00:46]} 15. a4 {[%emt 0:03:15]} a5 {[%emt 0:00:35]} 16. b4 {[%emt 0:06:13]} b6 {[%emt 0:00:30]} 17. Bf4 {[%emt 0:10:34]} Bf5 {[%emt 0:02:13] [#]} 18. c5 $1 {[%emt 0:09:23]} bxc5 {[%emt 0:07:26]} (18... g5 19. Bc1) 19. bxc5 {[%emt 0:00:40]} dxc5 {[%emt 0:00:12]} 20. Bxc7 {[%emt 0:00:44]} cxd4 {[%emt 0:03:26]} 21. cxd4 {[%emt 0:00:34]} Nd5 {[%emt 0:08:05]} 22. Be5 {[%emt 0:01:09][%csl Ge5][%cal Rg3g7]} f6 {[%emt 0:06:36]} 23. Bd6 {[%emt 0:00:57]} Qf7 {[%emt 0:00:06]} 24. Rac1 {[%emt 0:03:15]} Rad8 {[%emt 0:16:33]} (24... Bc8 $11) 25. Rc5 {[%emt 0:05:54]} e3 {[%emt 0:00:06]} 26. Bb5 {[%emt 0:03:15]} Re4 {[%emt 0:05:47] [#]} (26... e2 27. Re1 (27. Bxe8 $2 exf1=R+ 28. Kxf1 Qxe8 $19) 27... Re6 28. Rxd5 $11) ({Black should play} 26... Re6 $14 27. Bc7 (27. Rxd5 Be4 $11) 27... Nxc7 28. Rxc7 Re7 29. Rxe7 Qxe7) 27. Bd3 $1 $16 {[%emt 0:02:47][%csl LRa5,LRe4]} e2 {[%emt 0:00:07]} (27... exf2+ $16 {is a better defense.} 28. Qxf2 Bg6) 28. Re1 $18 {[%emt 0:00:47]} (28. Bxe4 $2 exf1=Q+ (28... exf1=R+ $2 29. Kxf1 Bxe4 30. Rc1 $19) 29. Kxf1 Bxe4 $19) 28... Qe6 {[%emt 0:00:05]} 29. Bc7 {[%emt 0:09:03][%cal Bd6c7,Bc7a5,Ba5c3,Bc3a1][%mdl 32]} Rd7 {[%emt 0:00:58]} 30. Bxa5 {[%emt 0:01:08]} Nf4 {[%emt 0:00:49]} (30... g6 $142) 31. Bc4 {[%emt 0:05:06]} Nd5 {[%emt 0:00:03] [#]} 32. Bd3 $2 {[%emt 0:00:15]} (32. Qb3 Rxd4 33. Qf3 (33. Bxe2 Qd6 $16) 33... Bg4 $11) ({White has to play} 32. Qd3 $1 $18) 32... Nf4 $1 $14 {[%emt 0:00:02]} 33. Bc4 $2 {[%emt 0:01:07][%mdl 8192]} (33. Bc3 $14 Nxd3 34. Qxd3) 33... Nd5 $18 {[%emt 0:00:01]} 34. h3 {[%emt 0:03:55]} (34. Qb3 Rxd4 35. Rxe2 (35. Bxe2 Qd6 $16) 35... Qd6 36. Rxd5 Rxd5 37. Bxd5 Qxd5 38. Qxd5 Rxd5 $16) ({Better is} 34. Qd3 $18) 34... Bg6 $2 {[%emt 0:02:21] This costs Black the game.} (34... Rxd4 $16 {was called for.} 35. Rxe2 Re4 36. Rxe4 Qxe4) 35. Bc3 {[%emt 0:00:45]} (35. Qf3 Rxd4 36. Qb3 (36. Bxe2 Qd6 $16) (36. Qxe2 Qxe2 37. Bxe2 Rxa4 $14) 36... Qd6 $14) 35... f5 {[%emt 0:04:27]} 36. Qf3 {[%emt 0:00:59]} Qf7 {[%emt 0:01:20]} (36... Bf7 $142 37. Bb2 (37. Rxe2 Rxe2 38. Qxe2 Qxe2 $18) (37. Bxe2 Nxc3 38. Rxc3 Rdxd4 $11) 37... Qg6 38. Rxe2 (38. Bxe2 Rde7 $16) 38... Nf6 39. Bxf7 (39. Qxf5 Qxf5 40. Rxf5 Bxc4 $17) (39. Rxf5 Bxc4 40. Rxe4 Nxe4 $18) 39... Rxf7) 37. Ba1 {[%emt 0:01:02] A strong pair of Bishops.} (37. Rxe2 Bh5 38. g4 Bxg4 39. hxg4 Rxg4+ 40. Kf1 Qg6 $18) (37. Bxe2 Qe7 $16) 37... Qg8 {[%emt 0:06:11]} 38. Rxe2 {[%emt 0:00:22]} ({Less strong is} 38. Bxe2 Nf4 39. Re5 Nxe2+ 40. Rxe2 Qc4 41. R2xe4 fxe4 $16) 38... Qb8 $2 {[%emt 0:00:02]} (38... Qa8 39. a5 Nf6) 39. Rxd5 {[%emt 0:01:07] Weighted Error Value: White=0.29 (precise) /Black=0.35.  Loses game:     	---       	Black=1      Missed win:     	White=1     	---        Mistake:       	White=3     	Black=7      Inaccurate:     	White=1     	Black=1      OK:         	White=9     	Black=10     Best:        	White=4     	Black=3      Strong:       	White=1     	Black=1} 1-0